bitfinex-derivatives/quotes_SOLF0:USTF0_20241026
["timestamp","ask_amount","ask_price","bid_price","bid_amount"]
[1729947843969,8.17602881,168.88,168.85,4.3]
[1729947844668,8.17602881,168.88,168.86,2.9641]
[1729947846267,8.17602881,168.89,168.85,12.47602881]
[1729947846572,11.13892881,168.93,168.88,11.13962881]
[1729947847366,11.13892881,168.93,168.88,8.17602881]
[1729947847570,5.6179,168.97,168.89,12.47602881]
[1729947847866,8.17602881,168.95,168.9,4.3]
[1729947848067,8.17602881,168.95,168.91,8.17602881]
[1729947848666,9.49392881,168.97,168.91,8.17602881]
[1729947848867,1.2375,169.0,168.94,8.17602881]
[1729947849071,8.17602881,168.99,168.94,12.47602881]
[1729947849274,8.17602881,168.95,168.91,4.3]
[1729947849572,8.17602881,168.92,168.9,4.3]
[1729947850363,12.79942913,168.95,168.9,4.3]
[1729947850770,15.76212913,168.95,168.9,7.2633]
[1729947850977,15.76212913,168.95,168.87,4.3]
[1729947850978,12.79942913,168.95,168.87,4.3]
[1729947852274,2.9629,168.93,168.88,2.9636]
[1729947852469,12.79942913,168.95,168.87,4.3]
[1729947853071,2.9631,168.92,168.87,7.2638]
[1729947854971,12.79942913,168.95,168.87,4.3]
[1729947855266,2.963,168.93,168.88,2.9636]
[1729947855672,1.2643,168.96,168.87,4.3]
[1729947856391,1.2643,168.96,168.89,2.9634]
[1729947856392,4.2267,168.96,168.89,2.9634]
[1729947856573,4.2267,168.96,168.87,4.3]
[1729947856972,1.2643,168.96,168.87,4.3]
[1729947857280,1.2643,168.96,168.88,12.79942913]
[1729947857675,4.2267,168.96,168.91,2.9631]
[1729947857976,4.3,169.02,168.92,12.79942913]
[1729947858175,4.3,169.02,168.98,2.9619]
[1729947858376,12.79942913,169.03,168.95,4.3]
[1729947858573,12.79942913,169.03,168.95,17.09942913]
[1729947860073,2.9614,169.02,168.97,2.962]
[1729947862283,2.9614,169.02,168.98,2.962]
[1729947862583,2.9611,169.04,168.97,12.79942913]
[1729947863285,2.9611,169.04,168.99,2.9618]
[1729947863475,2.9611,169.04,168.99,7.3218]
[1729947864276,2.9611,169.04,169.0,2.9615]
[1729947864677,2.9608,169.05,168.99,17.15942913]
[1729947865084,2.9608,169.05,169.01,2.9613]
[1729947865278,2.9608,169.05,168.99,17.15942913]
[1729947865782,2.4252,169.09,169.02,12.79942913]
[1729947866589,2.9604,169.07,169.03,2.961]
[1729947866887,2.4252,169.09,169.02,12.79942913]
[1729947867092,5.6047,169.11,169.02,12.79942913]
[1729947867287,2.96,169.1,169.03,4.36]
[1729947867586,2.96,169.1,169.03,17.15942913]
[1729947869284,2.9599,169.11,169.03,17.15942913]
[1729947869480,135.52098621,169.12,169.03,17.15942913]
[1729947870286,2.9599,169.1,169.06,2.9605]
[1729947870585,2.9599,169.1,169.03,17.15942913]
[1729947871191,2.9599,169.1,169.05,2.9606]
[1729947872777,2.9601,169.09,169.05,2.9606]
[1729947873490,2.4476,169.14,169.08,12.79942913]
[1729947873683,2.4476,169.14,169.08,17.15942913]
[1729947874084,2.9594,169.13,169.09,2.9599]
[1729947874282,18.36172913,169.18,169.08,17.15942913]
[1729947874897,5.5623,169.18,169.08,17.15942913]
[1729947875190,5.5623,169.18,169.1,12.79942913]
[1729947875384,2.9591,169.15,169.11,2.9596]
[1729947877091,1.2023,169.18,169.11,2.9596]
[1729947877286,14.00172913,169.18,169.08,15.75952913]
[1729947877486,12.79942913,169.15,169.04,16.65372913]
[1729947877790,2.96,169.1,169.05,4.36]
[1729947877992,2.96,169.1,169.06,2.9605]
[1729947878996,12.79942913,169.13,168.98,2.5616]
[1729947879199,2.5077,169.12,169.03,2.961]
[1729947879494,2.5077,169.12,169.03,7.321]
[1729947880693,2.9604,169.08,169.04,2.9609]
[1729947882385,2.9604,169.08,169.03,7.3211]
[1729947884494,2.5077,169.12,169.03,17.15942913]
[1729947884699,2.9601,169.09,169.04,2.9608]
[1729947885800,2.9601,169.09,169.05,2.9607]
[1729947886407,2.9598,169.11,169.06,2.9604]
[1729947887091,2.5077,169.12,169.06,2.9604]
[1729947887296,2.9599,169.1,169.06,2.9604]
[1729947887494,2.5077,169.12,169.03,17.15942913]
[1729947889303,2.9602,169.09,169.05,2.9607]
[1729947891506,2.9605,169.07,169.03,20.12052913]
[1729947894210,2.9607,169.06,169.03,4.36]
[1729947894713,4.32,169.1,169.0,12.79942913]
[1729947894916,4.32,169.1,169.01,7.2813]
[1729947895613,12.79942913,169.08,168.98,15.36102913]
[1729947895912,12.79942913,169.08,168.99,2.9618]
[1729947896117,2.9613,169.02,168.98,17.11942913]
[1729947896316,17.11942913,169.06,168.98,4.32]
[1729947896516,2.9615,169.01,168.98,4.32]
[1729947897715,2.9613,169.02,168.98,4.32]
[1729947898117,2.9613,169.02,168.98,7.282]
[1729947903018,12.79942913,169.06,168.98,4.32]
[1729947903220,2.9609,169.05,169.0,2.9615]
[1729947903716,2.9609,169.05,168.98,17.11942913]
[1729947903921,2.9609,169.05,169.01,2.9614]
[1729947905520,12.79942913,169.09,169.0,12.79942913]
[1729947905724,2.5027,169.11,169.0,12.79942913]
[1729947905725,2.9605,169.07,169.0,12.79942913]
[1729947905925,4.32,169.1,169.0,12.79942913]
[1729947906125,4.32,169.1,169.05,2.9607]
[1729947906624,2.9602,169.09,169.05,2.9607]
[1729947906829,2.9602,169.09,169.06,2.9605]
[1729947907025,12.79942913,169.1,169.02,4.32]
[1729947907220,2.9607,169.06,169.02,4.32]
[1729947907923,2.9611,169.03,168.89,5.9271]
[1729947908121,12.79942913,169.06,168.96,17.11942913]
[1729947908831,2.9612,169.03,168.96,17.11942913]
[1729947909123,4.32,169.07,168.9,1.1934]
[1729947909124,12.79942913,169.04,168.9,1.1934]
[1729947909329,12.79942913,169.04,168.96,7.2822]
[1729947909926,14.01082913,169.04,168.96,7.2822]
[1729947910125,2.9616,169.01,168.97,2.9621]
[1729947911926,2.9616,169.01,168.98,2.962]
[1729947912227,1.2946,169.05,168.98,12.79942913]
[1729947912930,4.2555,169.05,169.0,2.9615]
[1729947913833,1.2946,169.05,169.0,2.9615]
[1729947914029,1.2946,169.05,168.98,12.79942913]
[1729947914331,1.2946,169.05,168.98,2.9619]
[1729947914529,14.02012913,169.04,168.98,2.9619]
[1729947915035,2.9613,169.03,168.98,2.9619]
[1729947915332,14.02012913,169.04,168.98,2.9619]
[1729947916035,2.9615,169.01,168.98,2.9619]
[1729947917036,17.11942913,169.02,168.92,12.79942913]
[1729947917334,17.11942913,169.02,168.93,4.32]
[1729947918336,2.9621,168.98,168.95,2.9625]
[1729947920139,2.9618,169.0,168.96,2.9622]
[1729947921438,12.79942913,169.01,168.93,4.32]
[1729947922143,2.9621,168.98,168.94,2.9627]
[1729947923743,2.9626,168.95,168.91,7.2831]
[1729947924846,2.9629,168.93,168.89,2.9634]
[1729947925141,12.79942913,168.94,168.86,4.32]
[1729947926135,2.9631,168.92,168.88,2.9636]
[1729947928843,12.79942913,168.94,168.87,4.32]
[1729947929033,2.9634,168.9,168.86,4.32]
[1729947930229,2.9634,168.9,168.86,7.284]
[1729947930431,2.9635,168.9,168.86,4.32]
[1729947931847,14.05122913,168.97,168.81,3.7007]
[1729947931848,2.9637,168.89,168.81,3.7007]
[1729947932139,4.32,168.91,168.82,4.32]
[1729947932337,5.5166,168.91,168.83,2.9646]
[1729947932938,5.5166,168.91,168.81,8.0207]
[1729947933145,2.9637,168.88,168.83,2.9646]
[1729947934144,2.9637,168.88,168.84,2.9643]
[1729947935941,2.9639,168.87,168.83,2.9646]
[1729947939850,2.9643,168.85,168.8,2.9651]
[1729947940047,2.9643,168.85,168.79,4.32]
[1729947940352,2.9643,168.85,168.78,4.32]
[1729947940853,2.9643,168.85,168.81,2.9648]
[1729947943752,2.9643,168.85,168.78,4.32]
[1729947943753,12.79942913,168.85,168.78,4.32]
[1729947945055,2.9646,168.83,168.79,2.9652]
[1729947945750,12.79942913,168.85,168.78,4.32]
[1729947945944,22.13,168.87,168.74,4.32]
[1729947945945,12.79942913,168.83,168.74,4.32]
[1729947946143,12.79942913,168.81,168.72,12.79942913]
[1729947946343,12.79942913,168.81,168.73,4.32]
[1729947946645,2.9653,168.79,168.75,2.9659]
[1729947950653,2.9652,168.8,168.76,2.9658]
[1729947951455,8.5743,168.84,168.79,2.9652]
[1729947951657,18.40912913,168.84,168.79,2.9652]
[1729947951954,18.40912913,168.84,168.76,4.32]
[1729947952460,2.9647,168.83,168.76,4.32]
[1729947952855,18.40912913,168.84,168.76,4.32]
[1729947953054,8.5742,168.84,168.78,2.9654]
[1729947953258,8.5742,168.84,168.76,4.32]
[1729947953454,5.6097,168.84,168.76,4.32]
[1729947953654,15.32192913,168.87,168.76,17.11942913]
[1729947953959,6.8225,168.87,168.76,17.11942913]
[1729947954158,12.79942913,168.86,168.76,17.11942913]
[1729947954355,2.9645,168.84,168.76,17.11942913]
[1729947954956,12.79942913,168.86,168.8,2.965]
[1729947955158,12.79942913,168.86,168.76,17.11942913]
[1729947955159,2.9643,168.85,168.76,17.11942913]
[1729947955758,2.9643,168.85,168.8,2.965]
[1729947957257,2.9645,168.84,168.8,2.965]
[1729947958560,2.9641,168.86,168.82,2.9647]
[1729947960666,1.1999,168.91,168.83,12.79942913]
[1729947960861,1.1999,168.91,168.84,4.3]
[1729947961265,2.9635,168.9,168.86,2.964]
[1729947961466,1.1999,168.91,168.86,2.964]
[1729947961661,1.1999,168.91,168.84,4.3]
[1729947961862,1.1999,168.91,168.85,2.9642]
[1729947961863,2.9638,168.88,168.85,2.9642]
[1729947962068,5.4999,168.91,168.82,4.3]
[1729947962271,12.79942913,168.89,168.8,5.5218]
[1729947962573,2.9641,168.87,168.83,2.9646]
[1729947962969,12.79942913,168.89,168.83,2.9646]
[1729947963772,2.9649,168.82,168.78,2.9654]
[1729947966170,2.9649,168.82,168.76,4.3]
[1729947966379,12.79942913,168.83,168.72,15.23922913]
[1729947966674,12.79942913,168.83,168.74,4.3]
[1729947966974,12.79942913,168.83,168.75,2.9659]
[1729947967274,12.79942913,168.81,168.75,2.9659]
[1729947967971,12.79942913,168.81,168.74,2.9661]
[1729947968478,17.09942913,168.81,168.71,14.03162913]
[1729947968779,17.09942913,168.81,168.73,2.9662]
[1729947969976,2.9657,168.78,168.73,2.9662]
[1729947970470,2.9657,168.77,168.73,2.9662]
[1729947971581,2.9659,168.76,168.72,2.9665]
[1729947971870,12.79942913,168.77,168.7,4.3]
[1729947972076,2.966,168.75,168.71,2.9667]
[1729947973472,2.9659,168.76,168.72,2.9665]
[1729947974474,1.3214,168.78,168.75,2.9659]
[1729947974676,2.9654,168.79,168.71,12.79942913]
[1729947974972,1.246,168.8,168.71,12.79942913]
[1729947975179,4.2112,168.8,168.76,2.9658]
[1729947975678,1.246,168.8,168.71,12.79942913]
[1729947975869,1.3214,168.83,168.74,12.79942913]
[1729947975870,4.2861,168.83,168.74,12.79942913]
[1729947976177,4.2861,168.83,168.75,4.3]
[1729947976377,1.3214,168.83,168.75,4.3]
[1729947976578,5.5124,168.84,168.75,4.3]
[1729947976579,4.3,168.84,168.75,4.3]
[1729947977078,4.3,168.84,168.8,2.965]
[1729947977878,7.2645,168.84,168.8,2.965]
[1729947978678,7.2645,168.84,168.76,12.79942913]
[1729947978872,20.236,168.92,168.78,12.79942913]
[1729947979073,2.9638,168.88,168.79,4.3]
[1729947979268,12.79942913,168.87,168.79,4.3]
[1729947979575,17.09942913,168.87,168.8,2.965]
[1729947979878,2.9643,168.85,168.81,2.9649]
[1729947981076,2.9643,168.85,168.79,4.3]
[1729947981281,2.9639,168.88,168.79,17.09942913]
[1729947981983,2.9639,168.88,168.83,2.9645]
[1729947982376,2.9639,168.87,168.83,2.9645]
[1729947990188,17.09942913,168.89,168.83,2.9645]
[1729947990487,2.9641,168.86,168.83,2.9645]
[1729947991083,2.9641,168.86,168.81,2.9648]
[1729947991284,12.79942913,168.87,168.81,2.9648]
[1729947991585,12.79942913,168.87,168.77,12.79942913]
[1729947991586,12.79942913,168.87,168.78,4.36]
[1729947991790,2.9647,168.83,168.8,2.965]
[1729947992878,22.11,168.89,168.78,4.36]
[1729947993083,12.79942913,168.88,168.78,4.36]
[1729947994089,2.9646,168.84,168.81,2.9648]
[1729947994291,4.3,168.89,168.78,4.36]
[1729947994489,4.3,168.89,168.79,12.79942913]
[1729947995280,2.9641,168.87,168.83,2.9645]
[1729947996094,4.3,168.89,168.79,12.79942913]
[1729947996887,1.1937,168.91,168.81,12.79942913]
[1729947997096,1.1937,168.91,168.82,4.36]
[1729947997492,2.9632,168.91,168.87,2.9638]
[1729947998393,1.2298,168.92,168.84,12.79942913]
[1729947998591,258.7191338,168.93,168.84,12.79942913]
[1729947998896,255.7561338,168.93,168.84,12.79942913]
[1729947999096,242.95670467,168.93,168.84,12.79942913]
[1729947999394,1.2689,168.96,168.86,12.79942913]
[1729947999694,1.2689,168.96,168.87,4.36]
[1729948000215,12.79942913,168.94,168.87,4.36]
[1729948000592,2.9631,168.92,168.87,4.36]
[1729948000792,14.01872913,168.94,168.87,4.36]
[1729948001194,2.9634,168.91,168.87,7.3239]
[1729948001394,12.79942913,168.92,168.87,4.36]
[1729948001601,12.79942913,168.92,168.84,4.36]
[1729948002603,2.9634,168.9,168.86,2.964]
[1729948005499,12.79942913,168.92,168.86,2.964]
[1729948005703,2.9636,168.89,168.86,2.964]
[1729948006097,12.79942913,168.92,168.86,2.964]
[1729948007404,2.9634,168.9,168.86,2.964]
[1729948009100,2.9634,168.9,168.79,3.8267]
[1729948009304,12.79942913,168.92,168.79,3.8267]
[1729948009305,12.79942913,168.92,168.8,4.36]
[1729948009613,12.79942913,168.92,168.81,12.79942913]
[1729948010197,2.9637,168.88,168.84,2.9644]
[1729948010401,2.9637,168.88,168.84,7.3244]
[1729948010608,2.9637,168.88,168.85,2.9642]
[1729948010809,12.79942913,168.92,168.85,2.9642]
[1729948011012,2.9636,168.89,168.84,4.36]
[1729948012408,2.9636,168.89,168.86,2.9641]
[1729948013509,2.9636,168.89,168.85,2.9642]
[1729948014205,12.79942913,168.9,168.79,16.62612913]
[1729948014413,12.79942913,168.9,168.8,4.3]
[1729948014611,12.79942913,168.88,168.8,4.3]
[1729948015006,2.9642,168.86,168.82,2.9647]
[1729948019706,2.9642,168.86,168.8,4.3]
[1729948019901,2.9642,168.86,168.83,2.9646]
[1729948020617,2.964,168.87,168.83,2.9646]
[1729948020805,12.79942913,168.88,168.8,4.3]
[1729948021010,12.79942913,168.86,168.71,57.64]
[1729948021318,2.9647,168.83,168.75,12.79942913]
[1729948021508,2.9647,168.83,168.79,2.9653]
[1729948022517,8.20172,168.82,168.79,2.9653]
[1729948023119,1.2724,168.87,168.8,8.20172]
[1729948023315,2.9643,168.85,168.82,2.9648]
[1729948027507,1.2724,168.87,168.78,12.8095513]
[1729948027712,12.8095513,168.86,168.76,17.1095513]
[1729948028014,12.8095513,168.83,168.76,4.3]
[1729948028717,12.8095513,168.83,168.74,12.8095513]
[1729948028921,12.8095513,168.83,168.75,4.3]
[1729948029214,2.965,168.81,168.77,2.9655]
[1729948029719,2.9652,168.8,168.77,2.9655]
[1729948029917,12.8095513,168.81,168.75,2.9659]
[1729948030315,12.8095513,168.81,168.72,4.3]
[1729948030616,15.3518513,168.81,168.72,4.3]
[1729948030815,2.9657,168.77,168.74,2.9661]
[1729948031821,2.9656,168.78,168.74,2.9661]
[1729948032414,4.3,168.8,168.72,4.3]
[1729948033225,2.9655,168.78,168.74,2.9662]
[1729948033818,2.9652,168.8,168.76,2.9658]
[1729948039319,15.3518513,168.81,168.76,2.9658]
[1729948039523,2.9653,168.79,168.76,2.9658]
[1729948040227,15.3518513,168.81,168.76,2.9658]
[1729948040429,12.8095513,168.79,168.72,4.3]
[1729948040724,12.8095513,168.79,168.73,2.9663]
[1729948041316,2.9657,168.77,168.73,2.9663]
[1729948044427,8.20793572,168.75,168.73,2.9663]
[1729948049432,2.9653,168.8,168.76,2.9658]
[1729948049735,9.41733572,168.82,168.76,8.20793572]
[1729948050038,2.965,168.81,168.77,2.9656]
[1729948050629,2.9652,168.8,168.77,2.9656]
[1729948051024,4.3,168.84,168.79,2.9652]
[1729948051224,1.213,168.85,168.78,8.20793572]
[1729948051434,8.20793572,168.85,168.79,8.20793572]
[1729948051625,8.20793572,168.85,168.81,2.9649]
[1729948051937,11.17223572,168.85,168.81,2.9649]
[1729948052329,2.9643,168.85,168.81,2.9649]
[1729948055028,2.9641,168.86,168.82,2.9648]
[1729948055833,12.81023343,168.89,168.79,12.81023343]
[1729948056033,17.11023343,168.89,168.79,15.34023343]
[1729948056231,2.9639,168.88,168.84,2.9643]
[1729948056839,2.964,168.87,168.84,2.9643]
[1729948057033,12.81023343,168.85,168.75,12.81023343]
[1729948057336,12.81023343,168.85,168.76,4.3]
[1729948057931,2.9646,168.84,168.78,2.9654]
[1729948058135,2.9646,168.84,168.76,4.3]
[1729948059328,2.9646,168.84,168.79,2.9652]
[1729948061632,2.9646,168.84,168.76,4.3]
[1729948061941,2.9646,168.84,168.8,2.9651]
[1729948070045,20.07463343,168.85,168.81,2.9649]
[1729948072456,1.2724,168.88,168.79,12.81023343]
[1729948072760,1.2724,168.88,168.8,4.3]
[1729948072962,4.2363,168.88,168.84,2.9643]
[1729948074460,12.43232376,168.88,168.84,2.9643]
[1729948075257,8.19602376,168.86,168.8,4.3]
[1729948075461,8.19602376,168.84,168.81,2.9649]
[1729948077364,11.16042376,168.84,168.81,2.9649]
[1729948079264,8.19602376,168.82,168.77,8.19602376]
[1729948079465,8.19602376,168.78,168.74,12.45602376]
[1729948081364,8.19602376,168.78,168.76,2.9657]
[1729948081869,4.26,168.82,168.77,4.44940561]
[1729948082070,8.19602376,168.78,168.73,12.45602376]
[1729948082266,8.19602376,168.78,168.74,4.44911792]
[1729948082462,8.19602376,168.78,168.75,4.44911792]
[1729948082664,13.61661217,168.77,168.73,12.45602376]
[1729948082971,13.61661217,168.76,168.73,12.45602376]
[1729948083270,13.61661217,168.75,168.73,12.45602376]
[1729948083465,13.61661217,168.74,168.73,15.42242376]
[1729948083666,13.61661217,168.74,168.73,11.16242376]
[1729948083872,13.61661217,168.74,168.73,2.9664]
[1729948084074,13.61661217,168.74,168.71,8.19602376]
[1729948084266,13.61661217,168.73,168.71,12.45602376]
[1729948084472,13.61661217,168.72,168.71,12.45602376]
[1729948084667,13.61661217,168.72,168.71,11.16272376]
[1729948084871,13.61661217,168.72,168.71,7.2267]
[1729948085582,13.61661217,168.72,168.71,2.9667]
[1729948087376,21.81263593,168.72,168.68,4.26]
[1729948087572,21.81263593,168.71,168.67,4.26]
[1729948087878,24.77963593,168.7,168.65,2.9677]
[1729948088172,13.61661217,168.69,168.65,2.9677]
[1729948088373,13.61661217,168.68,168.65,2.9677]
[1729948088579,13.61661217,168.67,168.65,2.9677]
[1729948088780,13.61661217,168.66,168.65,2.9677]
[1729948089274,13.61661217,168.66,168.64,2.9678]
[1729948089577,13.61661217,168.65,168.64,2.9678]
[1729948089776,8.19602376,168.68,168.64,2.9678]
[1729948090174,4.26,168.73,168.67,2.9674]
[1729948090482,8.19602376,168.71,168.67,2.9674]
[1729948091183,4.26,168.73,168.68,2.9672]
[1729948091366,8.19602376,168.72,168.68,2.9672]
[1729948091566,2.6051,168.74,168.67,8.19602376]
[1729948091567,9.50992376,168.74,168.69,8.19602376]
[1729948091967,9.50992376,168.74,168.7,2.9667]
[1729948094281,1.3139,168.74,168.7,2.9667]
[1729948094486,1.3139,168.74,168.67,17.0866525]
[1729948094681,1.3053,168.75,168.71,2.9666]
[1729948096685,1.3053,168.75,168.72,2.9665]
[1729948097786,1.3053,168.75,168.67,17.0866525]
[1729948097994,1.2888,168.79,168.71,12.8266525]
[1729948098288,1.2888,168.79,168.71,17.0866525]
[1729948099391,2.9655,168.78,168.71,17.0866525]
[1729948101389,2.9655,168.78,168.74,2.9661]
[1729948102994,1.2888,168.79,168.74,2.9661]
[1729948103189,2.9657,168.77,168.74,2.9661]
[1729948108285,14.1154525,168.79,168.71,4.26]
[1729948108491,2.9662,168.75,168.72,2.9664]
[1729948108687,1.282,168.78,168.71,4.26]
[1729948109192,2.9663,168.74,168.71,7.2267]
[1729948109389,1.282,168.78,168.67,12.8266525]
[1729948109390,12.8266525,168.77,168.67,12.8266525]
[1729948109595,12.8266525,168.75,168.67,4.28]
[1729948111199,2.9664,168.73,168.69,2.9671]
[1729948111594,12.8266525,168.75,168.69,2.9671]
[1729948111898,12.8266525,168.75,168.67,4.28]
[1729948112094,12.8266525,168.71,168.61,12.8266525]
[1729948112401,12.8266525,168.71,168.61,4.28]
[1729948112597,2.9676,168.67,168.63,2.9681]
[1729948113593,2.9675,168.67,168.63,2.9681]
[1729948113893,12.8266525,168.69,168.61,2.9684]
[1729948114100,4.28,168.68,168.61,2.9684]
[1729948114290,2.9677,168.66,168.61,2.9684]
[1729948114491,4.28,168.68,168.61,2.9684]
[1729948114694,4.28,168.68,168.6,2.9685]
[1729948114998,2.9679,168.65,168.6,2.9685]
[1729948115299,12.8266525,168.67,168.6,2.9685]
[1729948115500,14.1272525,168.67,168.6,2.9685]
[1729948115692,2.9678,168.65,168.6,2.9685]
[1729948116491,2.9676,168.66,168.62,2.9682]
[1729948119306,9.5076813,168.67,168.64,2.9679]
[1729948119509,8.2070813,168.67,168.64,2.9679]
[1729948119706,11.1743813,168.68,168.64,2.9679]
[1729948120305,10.6585813,168.7,168.64,8.2070813]
[1729948120609,8.2070813,168.7,168.64,8.2070813]
[1729948121408,8.2070813,168.7,168.67,2.9674]
[1729948122312,2.9668,168.71,168.67,2.9674]
[1729948125412,2.9668,168.71,168.63,12.81742342]
[1729948126520,2.9668,168.71,168.67,2.9673]
[1729948128322,4.28,168.72,168.63,12.81742342]
[1729948128528,2.9673,168.68,168.65,2.9678]
[1729948129632,2.9672,168.69,168.65,2.9678]
[1729948130227,12.81742342,168.71,168.62,4.28]
[1729948130421,15.78432342,168.71,168.62,4.28]
[1729948130632,12.81742342,168.71,168.62,4.28]
[1729948131235,2.9669,168.7,168.66,2.9675]
[1729948132233,2.9672,168.69,168.65,2.9676]
[1729948135130,2.9672,168.69,168.66,2.9676]
[1729948137436,15.78422342,168.71,168.67,2.9674]
[1729948137737,2.9668,168.71,168.67,2.9674]
[1729948138441,2.9668,168.71,168.63,12.81742342]
[1729948138640,2.9668,168.71,168.68,2.9671]
[1729948139846,2.9667,168.72,168.66,2.9676]
[1729948140143,12.81742342,168.73,168.63,12.81742342]
[1729948140933,2.9668,168.71,168.63,12.81742342]
[1729948141740,2.9668,168.71,168.67,2.9673]
[1729948142242,11.17035431,168.71,168.67,2.9673]
[1729948142441,2.9668,168.71,168.67,2.9673]
[1729948142639,2.9668,168.71,168.68,2.9672]
[1729948142941,11.17035431,168.71,168.68,2.9672]
[1729948143144,2.9669,168.7,168.67,2.9674]
[1729948147752,11.17045431,168.7,168.66,2.9676]
[1729948148052,2.9671,168.69,168.66,2.9676]
[1729948149550,8.20355431,168.68,168.49,8.20002899]
[1729948149747,2.9676,168.66,168.63,2.9681]
[1729948150244,8.20355431,168.66,168.62,2.9682]
[1729948150946,11.17115431,168.66,168.62,2.9682]
[1729948151342,2.9681,168.64,168.59,2.9687]
[1729948151554,8.20355431,168.63,168.59,2.9687]
[1729948152758,8.20355431,168.63,168.57,4.26]
[1729948152950,8.20355431,168.63,168.58,8.20355431]
[1729948153553,8.20355431,168.63,168.6,2.9689]
[1729948153761,8.20355431,168.64,168.59,8.20355431]
[1729948154264,8.20355431,168.63,168.56,4.26]
[1729948154451,8.20355431,168.63,168.58,8.20355431]
[1729948154650,8.20355431,168.61,168.58,2.9691]
[1729948155154,8.20355431,168.61,168.59,2.9691]
[1729948155858,8.20355431,168.62,168.59,2.9691]
[1729948159768,8.20355431,168.62,168.58,2.969]
[1729948159972,8.20355431,168.62,168.57,8.20355431]
[1729948160368,8.20355431,168.61,168.55,4.26]
[1729948160866,8.20355431,168.61,168.57,2.969]
[1729948161568,8.20355431,168.61,168.54,12.46355431]
[1729948161874,8.20355431,168.61,168.58,2.969]
[1729948164668,8.20355431,168.61,168.59,2.9688]
[1729948167774,8.20355431,168.64,168.58,8.20355431]
[1729948168971,8.20355431,168.64,168.61,2.9685]
[1729948169574,8.20355431,168.64,168.59,2.9687]
[1729948169777,8.20355431,168.64,168.58,8.20355431]
[1729948170478,8.20355431,168.64,168.62,2.9682]
[1729948175685,2.9677,168.66,168.62,2.9682]
[1729948175989,8.20355431,168.64,168.62,2.9682]
[1729948176591,8.20355431,168.64,168.58,12.46355431]
[1729948179391,8.20355431,168.64,168.62,2.9683]
[1729948181592,8.20355431,168.63,168.6,2.9686]
[1729948181797,8.20355431,168.61,168.6,2.9686]
[1729948184099,8.20355431,168.62,168.6,2.9686]
[1729948185696,7.2279,168.65,168.61,2.9685]
[1729948185896,8.20355431,168.63,168.61,2.9685]
[1729948187600,8.20355431,168.63,168.58,8.20355431]
[1729948188394,8.20355431,168.63,168.61,2.9684]
[1729948189997,8.20355431,168.62,168.61,2.9684]
[1729948196715,8.20355431,168.64,168.62,2.9682]
[1729948196911,8.20355431,168.64,168.58,8.20355431]
[1729948197816,8.20355431,168.65,168.59,8.20355431]
[1729948198016,8.20355431,168.65,168.64,2.9678]
[1729948206227,5.4584,168.68,168.61,8.20355431]
[1729948206431,8.20355431,168.67,168.61,8.20355431]
[1729948207335,8.20355431,168.67,168.65,2.9677]
[1729948208932,8.20355431,168.67,168.61,8.20355431]
[1729948209235,8.20355431,168.67,168.66,2.9676]
[1729948217341,1.3039,168.69,168.68,2.9673]
[1729948217537,1.2025,168.73,168.66,8.20355431]
[1729948217737,12.44355431,168.72,168.67,8.20355431]
[1729948218238,8.20355431,168.71,168.66,8.20355431]
[1729948219337,8.20355431,168.71,168.69,2.967]
[1729948221941,8.20355431,168.7,168.63,8.20355431]
[1729948222247,8.20355431,168.7,168.57,3.7318]
[1729948222248,8.20355431,168.67,168.62,12.44355431]
[1729948223149,8.20355431,168.67,168.64,2.9679]
[1729948224651,2.9676,168.66,168.62,7.2083]
[1729948225343,11.17115431,168.66,168.62,7.2083]
[1729948225841,8.20355431,168.64,168.62,2.9683]
[1729948226643,11.17175431,168.63,168.59,2.9687]